fUSD/lending_fUSD_20251210
["ID","MTS","AMOUNT","RATE_DAILY","PERIOD"]
[398066167,1765349442766,-694.11,0.00014472,2]
[398066168,1765349442775,-611.23,0.00014472,2]
[398066169,1765349442784,-500.0,0.00014472,2]
[398066170,1765349442794,-500.0,0.00014472,2]
[398066171,1765349442803,-500.0,0.00014472,2]
[398066172,1765349442812,-500.0,0.00014472,2]
[398066173,1765349442822,-500.0,0.00014472,2]
[398066174,1765349442832,-500.0,0.00014472,2]
[398066175,1765349442842,-500.0,0.00014472,2]
[398066176,1765349442852,-500.0,0.00014472,2]
[398066177,1765349442862,-500.0,0.00014472,2]
[398066178,1765349442871,-500.0,0.00014472,2]
[398066179,1765349442880,-500.0,0.00014472,2]
[398066180,1765349442890,-500.0,0.00014472,2]
[398066181,1765349442899,-562.77676756,0.00014472,2]
[398066182,1765349442908,-500.0,0.00014472,2]
[398066183,1765349442917,-500.0,0.00014472,2]
[398066184,1765349442927,-514.66650474,0.00014472,2]
[398066185,1765349442937,-500.0,0.00014472,2]
[398066186,1765349442946,-500.0,0.00014472,2]
[398066187,1765349442955,-789.59,0.00014472,2]
[398066188,1765349442964,-500.0,0.00014472,2]
[398066189,1765349442974,-500.0,0.00014472,2]
[398066190,1765349442983,-500.0,0.00014472,2]
[398066191,1765349442992,-500.0,0.00014472,2]
[398066192,1765349443001,-500.0,0.00014472,2]
[398066193,1765349443011,-506.77504211,0.00014472,2]
[398066194,1765349443020,-500.0,0.00014472,2]
[398066195,1765349443028,-745.74,0.00014472,2]
[398066196,1765349443037,-500.0,0.00014472,2]
[398066197,1765349443046,-544.93,0.00014472,2]
[398066198,1765349443056,-500.0,0.00014472,2]
[398066199,1765349443065,-500.0,0.00014472,2]
[398066200,1765349443075,-500.0,0.00014472,2]
[398066201,1765349443084,-500.0,0.00014472,2]
[398066202,1765349443094,-500.0,0.00014472,2]
[398066203,1765349443103,-500.0,0.00014472,2]
[398066204,1765349443118,-500.0,0.00014472,2]
[398066205,1765349443128,-500.0,0.00014472,2]
[398066206,1765349443137,-500.0,0.00014472,2]
[398066207,1765349443146,-500.0,0.00014472,2]
[398066208,1765349443156,-500.0,0.00014472,2]
[398066209,1765349443165,-638.77,0.00014472,2]
[398066210,1765349443175,-500.0,0.00014472,2]
[398066211,1765349443186,-635.14,0.00014472,2]
[398066212,1765349443195,-500.0,0.00014472,2]
[398066213,1765349443204,-500.0,0.00014472,2]
[398066214,1765349443214,-500.0,0.00014472,2]
[398066215,1765349443223,-500.0,0.00014472,2]
[398066216,1765349443232,-500.0,0.00014472,2]
[398066217,1765349443242,-500.0,0.00014472,2]
[398066218,1765349443252,-500.0,0.00014472,2]
[398066219,1765349443262,-550.07,0.00014472,2]
[398066220,1765349443271,-500.0,0.00014472,2]
[398066221,1765349443281,-500.0,0.00014472,2]
[398066222,1765349443290,-500.0,0.00014472,2]
[398066223,1765349443300,-500.0,0.00014472,2]
[398066224,1765349443310,-518.52,0.00014472,2]
[398066225,1765349443320,-500.0,0.00014472,2]
[398066226,1765349443329,-500.0,0.00014472,2]
[398066227,1765349443338,-500.0,0.00014472,2]
[398066228,1765349443348,-506.49736073,0.00014472,2]
[398066229,1765349443358,-500.0,0.00014472,2]
[398066230,1765349443367,-500.0,0.00014472,2]
[398066231,1765349443377,-500.0,0.00014472,2]
[398066232,1765349443387,-500.0,0.00014472,2]
[398066233,1765349443397,-500.0,0.00014472,2]
[398066234,1765349443406,-500.0,0.00014472,2]
[398066235,1765349443415,-1189.61,0.00014472,2]
[398066236,1765349443426,-500.0,0.00014472,2]
[398066237,1765349443435,-595.7,0.00014472,2]
[398066238,1765349443445,-500.0,0.00014472,2]
[398066239,1765349443454,-500.0,0.00014472,2]
[398066240,1765349443464,-500.0,0.00014472,2]
[398066241,1765349443473,-500.0,0.00014472,2]
[398066242,1765349443482,-575.32102111,0.00014472,2]
[398066243,1765349443491,-500.0,0.00014472,2]
[398066244,1765349443501,-500.0,0.00014472,2]
[398066245,1765349443510,-500.0,0.00014472,2]
[398066246,1765349443522,-560.24,0.00014472,2]
[398066248,1765349443532,-500.0,0.00014472,2]
[398066250,1765349443541,-754.05,0.00014472,2]
[398066252,1765349443550,-500.0,0.00014472,2]
[398066254,1765349443559,-500.0,0.00014472,2]
[398066256,1765349443569,-500.0,0.00014472,2]
[398066259,1765349443582,-715.83,0.00014472,2]
[398066260,1765349443592,-500.0,0.00014472,2]
[398066261,1765349443602,-500.0,0.00014472,2]
[398066262,1765349443612,-500.0,0.00014472,2]
[398066263,1765349443621,-500.0,0.00014472,2]
[398066264,1765349443630,-947.73,0.00014472,2]
[398066265,1765349443639,-1093.08,0.00014472,2]
[398066266,1765349443649,-500.0,0.00014472,2]
[398066267,1765349443658,-500.0,0.00014472,2]
[398066268,1765349443668,-689.3,0.00014472,2]
[398066269,1765349443677,-181.28385567,0.00014472,2]
[398066275,1765349443890,-510.21,0.00014472,2]
[398066276,1765349443912,-500.0,0.00014472,2]
[398066277,1765349443931,-500.0,0.00014472,2]
[398066278,1765349443953,-684.61,0.00014472,2]
[398066279,1765349443976,-436.83339006,0.00014472,2]
[398066280,1765349443999,-625.87,0.00014472,2]
[398066281,1765349444023,-500.0,0.00014472,2]
[398066282,1765349444047,-500.0,0.00014472,2]
[398066283,1765349444074,-525.19,0.00014472,2]
[398066284,1765349444084,-500.0,0.00014472,2]
[398066285,1765349444094,-297.85268989,0.00014472,2]
[398066286,1765349444104,-500.0,0.00014472,2]
[398066287,1765349444113,-500.0,0.00014472,2]
[398066288,1765349444122,-500.0,0.00014472,2]
[398066289,1765349444132,-3979.34,0.00014472,2]
[398066290,1765349444142,-500.0,0.00014472,2]
[398066291,1765349444151,-500.0,0.00014472,2]
[398066292,1765349444160,-607.07,0.00014472,2]
[398066293,1765349444170,-501.25,0.00014472,2]
[398066294,1765349444179,-500.0,0.00014472,2]
[398066295,1765349444189,-635.23,0.00014472,2]
[398066296,1765349444198,-500.0,0.00014472,2]
[398066297,1765349444208,-599.51,0.00014472,2]
[398066298,1765349444217,-500.0,0.00014472,2]
[398066299,1765349444227,-616.74,0.00014472,2]
[398066300,1765349444236,-500.0,0.00014472,2]
[398066301,1765349444245,-500.0,0.00014472,2]
[398066302,1765349444255,-500.0,0.00014472,2]
[398066303,1765349444264,-1151.97,0.00014472,2]
[398066304,1765349444273,-645.97456182,0.00014472,2]
[398066305,1765349444282,-500.0,0.00014472,2]
[398066306,1765349444291,-500.0,0.00014472,2]
[398066307,1765349444300,-968.96,0.00014472,2]
[398066308,1765349444309,-540.8,0.00014472,2]
[398066309,1765349444319,-500.0,0.00014472,2]
[398066310,1765349444328,-500.0,0.00014472,2]
[398066311,1765349444338,-532.50534713,0.00014472,2]
[398066312,1765349444347,-515.36,0.00014472,2]
[398066313,1765349444356,-500.0,0.00014472,2]
[398066314,1765349444366,-500.0,0.00014472,2]
[398066315,1765349444376,-500.0,0.00014472,2]
[398066316,1765349444385,-500.0,0.00014472,2]
[398066317,1765349444395,-500.0,0.00014472,2]
[398066318,1765349444405,-291.1398692,0.00014472,2]
[398066319,1765349444414,-687.8,0.00014472,2]
[398066320,1765349444424,-500.0,0.00014472,2]
[398066321,1765349444433,-500.0,0.00014472,2]
[398066322,1765349444443,-633.68,0.00014472,2]
[398066323,1765349444452,-500.0,0.00014472,2]
[398066324,1765349444462,-521.85,0.00014472,2]
[398066325,1765349444471,-500.0,0.00014472,2]
[398066326,1765349444480,-500.0,0.00014472,2]
[398066327,1765349444490,-500.0,0.00014472,2]
[398066328,1765349444499,-864.49,0.00014472,2]
[398066329,1765349444509,-2436.78,0.00014472,2]
[398066330,1765349444518,-1370.07,0.00014472,2]
[398066331,1765349444532,-500.0,0.00014472,2]
[398066332,1765349444541,-550.64,0.00014472,2]
[398066333,1765349444551,-500.0,0.00014472,2]
[398066334,1765349444560,-535.12,0.00014472,2]
[398066335,1765349444570,-535.12,0.00014472,2]
[398066336,1765349444579,-535.12,0.00014472,2]
[398066337,1765349444588,-500.0,0.00014472,2]
[398066338,1765349444599,-500.0,0.00014472,2]
[398066339,1765349444609,-554.96,0.00014472,2]
[398066340,1765349444618,-500.0,0.00014472,2]
[398066341,1765349444629,-500.0,0.00014472,2]
[398066342,1765349444640,-571.33,0.00014472,2]
[398066343,1765349444650,-3273.89,0.00014472,2]
[398066344,1765349444661,-500.0,0.00014472,2]
[398066345,1765349444670,-500.0,0.00014472,2]
[398066346,1765349444679,-500.0,0.00014472,2]
[398066347,1765349444688,-552.19,0.00014472,2]
[398066348,1765349444698,-500.0,0.00014472,2]
[398066349,1765349444708,-500.0,0.00014472,2]
[398066350,1765349444717,-304.2638412,0.00014472,2]
[398066351,1765349444726,-500.0,0.00014472,2]
[398066352,1765349444735,-520.87,0.00014472,2]
[398066353,1765349444744,-500.0,0.00014472,2]
[398066354,1765349444754,-718.43,0.00014472,2]
[398066355,1765349444763,-500.0,0.00014472,2]
[398066356,1765349444773,-625.78,0.00014472,2]
[398066357,1765349444783,-979.42,0.00014472,2]
[398066358,1765349444792,-500.0,0.00014472,2]
[398066359,1765349444802,-500.0,0.00014472,2]
[398066360,1765349444812,-500.0,0.00014472,2]
[398066361,1765349444821,-500.0,0.00014472,2]
[398066362,1765349444831,-500.0,0.00014472,2]
[398066363,1765349444840,-500.0,0.00014472,2]
[398066364,1765349444850,-700.5,0.00014472,2]
[398066365,1765349444859,-605.63,0.00014472,2]
[398066366,1765349444869,-500.0,0.00014472,2]
[398066367,1765349444878,-500.0,0.00014472,2]
[398066368,1765349444887,-500.0,0.00014472,2]
[398066369,1765349444897,-681.43,0.00014472,2]
[398066370,1765349444906,-1181.08,0.00014472,2]
[398066371,1765349444916,-500.0,0.00014472,2]
[398066372,1765349444925,-500.0,0.00014472,2]
[398066373,1765349444934,-500.0,0.00014472,2]
[398066374,1765349444943,-546.34,0.00014472,2]
[398066375,1765349444952,-500.0,0.00014472,2]
[398066376,1765349444963,-500.0,0.00014472,2]
[398066377,1765349444972,-500.0,0.00014472,2]
[398066378,1765349444981,-714.54,0.00014472,2]
[398066379,1765349444990,-500.0,0.00014472,2]
[398066380,1765349444999,-500.0,0.00014472,2]
[398066381,1765349445008,-500.0,0.00014472,2]
[398066382,1765349445018,-500.0,0.00014472,2]
[398066383,1765349445028,-895.1,0.00014472,2]
[398066384,1765349445037,-595.38,0.00014472,2]
[398066385,1765349445047,-221.50229405,0.00014472,2]
[398066386,1765349445056,-500.0,0.00014472,2]
[398066387,1765349445065,-552.63,0.00014472,2]
[398066388,1765349445074,-1464.5,0.00014472,2]
[398066389,1765349445084,-719.88,0.00014472,2]
[398066390,1765349445093,-995.0,0.00014472,2]
[398066391,1765349445103,-500.0,0.00014472,2]
[398066392,1765349445113,-500.0,0.00014472,2]
[398066393,1765349445122,-508.10848522,0.00014472,2]
[398066394,1765349445131,-2911.66,0.00014472,2]
[398066395,1765349445141,-500.0,0.00014472,2]
[398066396,1765349445150,-779.43,0.00014472,2]
[398066397,1765349445160,-1318.42,0.00014472,2]
[398066398,1765349445169,-500.0,0.00014472,2]
[398066399,1765349445179,-579.5,0.00014472,2]
[398066400,1765349445188,-581.59,0.00014472,2]
[398066401,1765349445198,-614.05,0.00014472,2]
[398066402,1765349445207,-500.0,0.00014472,2]
[398066403,1765349445217,-525.90243798,0.00014472,2]
[398066404,1765349445226,-500.0,0.00014472,2]
[398066405,1765349445235,-1000.0,0.00014472,2]
[398066406,1765349445244,-500.0,0.00014472,2]
[398066407,1765349445254,-500.0,0.00014472,2]
[398066408,1765349445263,-500.0,0.00014472,2]
[398066409,1765349445273,-500.0,0.00014472,2]
[398066410,1765349445282,-757.44,0.00014472,2]
[398066411,1765349445291,-504.31536507,0.00014472,2]
[398066412,1765349445301,-500.0,0.00014472,2]
[398066413,1765349445311,-670.45,0.00014472,2]
[398066414,1765349445321,-1199.72,0.00014472,2]
[398066415,1765349445330,-624.5,0.00014472,2]
[398066416,1765349445340,-500.0,0.00014472,2]
[398066417,1765349445349,-500.0,0.00014472,2]
[398066418,1765349445358,-514.71,0.00014472,2]
[398066419,1765349445368,-500.0,0.00014472,2]
[398066420,1765349445378,-500.0,0.00014472,2]
[398066421,1765349445388,-500.0,0.00014472,2]
[398066422,1765349445397,-500.0,0.00014472,2]
[398066423,1765349445407,-500.0,0.00014472,2]
[398066424,1765349445416,-500.0,0.00014472,2]
[398066425,1765349445426,-500.0,0.00014472,2]
[398066426,1765349445435,-741.01,0.00014472,2]
[398066427,1765349445445,-500.0,0.00014472,2]
[398066428,1765349445455,-500.0,0.00014472,2]
[398066429,1765349445464,-709.21,0.00014472,2]
[398066430,1765349445474,-500.0,0.00014472,2]
[398066431,1765349445483,-500.0,0.00014472,2]
[398066432,1765349445492,-500.0,0.00014472,2]
[398066433,1765349445501,-500.0,0.00014472,2]
[398066434,1765349445511,-500.0,0.00014472,2]
[398066435,1765349445520,-590.04,0.00014472,2]
[398066436,1765349445529,-509.69193358,0.00014472,2]
[398066437,1765349445542,-500.0,0.00014472,2]
[398066438,1765349445551,-332.49442774,0.00014472,2]
[398066439,1765349445560,-500.0,0.00014472,2]
[398066440,1765349445570,-500.0,0.00014472,2]
[398066441,1765349445580,-647.32,0.00014472,2]
[398066442,1765349445590,-219.16043299,0.00014472,2]
[398066443,1765349445600,-506.36,0.00014472,2]
[398066444,1765349445610,-500.0,0.00014472,2]
[398066445,1765349445620,-500.0,0.00014472,2]
[398066446,1765349445628,-2990.53,0.00014472,2]
[398066447,1765349445637,-500.0,0.00014472,2]
[398066448,1765349445646,-500.0,0.00014472,2]
[398066449,1765349445655,-522.98,0.00014472,2]
[398066450,1765349445664,-500.0,0.00014472,2]
[398066451,1765349445673,-501.03649668,0.00014472,2]
[398066452,1765349445683,-500.0,0.00014472,2]
[398066453,1765349445691,-500.0,0.00014472,2]
[398066454,1765349445700,-554.92,0.00014472,2]
[398066455,1765349445710,-500.0,0.00014472,2]
[398066456,1765349445720,-525.78,0.00014472,2]
[398066457,1765349445729,-500.0,0.00014472,2]
[398066458,1765349445738,-500.0,0.00014472,2]
[398066459,1765349445749,-500.0,0.00014472,2]
[398066460,1765349445759,-381.61571641,0.00014472,2]
[398066461,1765349446215,-118.38428359,0.00014472,2]
[398066462,1765349446224,-514.2,0.00014472,2]
[398066463,1765349446234,-500.0,0.00014472,2]
[398066464,1765349446243,-1491.82,0.00014472,2]
[398066465,1765349446253,-247.61591502,0.00014472,2]
[398066466,1765349446262,-500.0,0.00014472,2]
[398066467,1765349446271,-500.0,0.00014472,2]
[398066468,1765349446280,-500.0,0.00014472,2]
[398066469,1765349446289,-500.0,0.00014472,2]
[398066470,1765349446299,-500.0,0.00014472,2]
[398066471,1765349446308,-500.0,0.00014472,2]
[398066472,1765349446321,-668.93,0.00014472,2]
[398066473,1765349446330,-500.0,0.00014472,2]
[398066474,1765349446339,-500.0,0.00014472,2]
[398066475,1765349446350,-500.0,0.00014472,2]
[398066476,1765349446359,-708.32,0.00014472,2]
[398066477,1765349446368,-500.0,0.00014472,2]
[398066478,1765349446378,-500.0,0.00014472,2]
[398066479,1765349446387,-621.09,0.00014472,2]
[398066480,1765349446396,-500.0,0.00014472,2]
[398066481,1765349446406,-900.74,0.00014472,2]
[398066482,1765349446416,-500.0,0.00014472,2]
[398066483,1765349446425,-745.87,0.00014472,2]
[398066485,1765349446434,-500.0,0.00014472,2]
[398066487,1765349446443,-500.0,0.00014472,2]
[398066489,1765349446453,-500.0,0.00014472,2]
[398066490,1765349446462,-9085.54962596,0.0001451,3]
[398066491,1765349446472,-189.06448687,0.00014548,2]
[398066492,1765349446481,-150.0,0.00014548,2]
[398066493,1765349446490,-150.0,0.00014548,2]
[398066494,1765349446500,-178.95922903,0.00014571,2]
[398066495,1765349446509,-500.0,0.00014571,2]
[398066496,1765349446517,-271.42384759,0.00014571,2]
[398066497,1765349446527,-500.0,0.00014571,2]
[398066498,1765349446539,-200.91100132,0.00014571,2]
[398066499,1765349446549,-500.0,0.00014571,2]
[398066500,1765349446559,-500.0,0.00014571,2]
[398066501,1765349446568,-535.12,0.00014571,2]
[398066502,1765349446578,-500.90160488,0.00014572,2]
[398066503,1765349446587,-500.0,0.00014572,2]
[398066504,1765349446596,-500.77715446,0.00014572,2]
[398066505,1765349446606,-507.85,0.00014572,2]
[398066506,1765349446618,-586.74,0.00014572,2]
[398066507,1765349446628,-503.75286077,0.00014572,2]
[398066508,1765349446637,-276.74062202,0.00014572,2]
[398066509,1765349446646,-500.0,0.00014572,2]
[398066510,1765349446656,-392.90637166,0.00014572,2]
[398066511,1765349446672,-267.82362834,0.00014572,2]
[398066512,1765349446681,-500.0,0.00014572,2]
[398066513,1765349446691,-500.0,0.00014572,2]
[398066514,1765349446700,-500.0,0.00014572,2]
[398066515,1765349446709,-500.0,0.00014572,2]
[398066516,1765349446719,-500.0,0.00014572,2]
[398066517,1765349446729,-664.12,0.00014572,2]
[398066518,1765349446738,-336.40918691,0.00014572,2]
[398066519,1765349446748,-500.0,0.00014572,2]
[398066520,1765349446757,-500.0,0.00014572,2]
[398066521,1765349446767,-500.0,0.00014572,2]
[398066522,1765349446776,-337.74459769,0.00014572,2]
[398066523,1765349446788,-162.25540231,0.00014572,2]
[398066524,1765349446797,-570.44042708,0.00014572,2]
[398066525,1765349446812,-391.51957292,0.00014572,2]
[398066526,1765349446821,-502.76573073,0.00014572,2]
[398066527,1765349446831,-500.0,0.00014572,2]
[398066528,1765349446841,-500.0,0.00014572,2]
[398066529,1765349446850,-500.0,0.00014572,2]
[398066530,1765349447085,-391.90321815,0.00014572,2]
[398066531,1765349447097,-170.05678185,0.00014572,2]
[398066532,1765349447106,-215.95211454,0.00014572,2]
[398066533,1765349447116,-500.0,0.00014572,2]
[398066534,1765349447125,-500.0,0.00014572,2]
[398066535,1765349447135,-500.0,0.00014572,2]
[398066536,1765349447144,-500.0,0.00014572,2]
[398066537,1765349447153,-546.33408369,0.00014572,2]
[398066538,1765349447719,-83.48531981,0.00014572,2]
[398066539,1765349447729,-458.41982725,0.00014572,2]
[398066540,1765349447740,-41.58017275,0.00014572,2]
[398066541,1765349447750,-490.25395955,0.00014572,2]
[398066542,1765349447765,-9.74604045,0.00014572,2]
[398066543,1765349447775,-500.0,0.00014572,2]
[398066544,1765349447784,-25.07524618,0.00014572,2]
[398066545,1765349447796,-319.48311445,0.00014572,2]
[398066546,1765349447804,-13.55443996,0.00014572,2]
[398066547,1765349447874,-47.91362138,0.00014572,2]
[398066548,1765349447912,-438.53193866,0.00014572,2]
[398066549,1765349447922,-500.0,0.00014572,2]
[398066550,1765349447931,-584.24,0.00014572,2]
[398066551,1765349447940,-500.0,0.00014572,2]
[398066552,1765349447950,-500.0,0.00014572,2]
[398066553,1765349447959,-426.40103985,0.00014572,2]
[398066554,1765349447970,-73.59896015,0.00014572,2]
[398066555,1765349447979,-687.15,0.00014572,2]
[398066556,1765349447988,-500.0,0.00014572,2]
[398066557,1765349447998,-500.0,0.00014572,2]
[398066558,1765349448007,-500.0,0.00014572,2]
[398066559,1765349448016,-500.0,0.00014572,2]
[398066560,1765349448026,-500.0,0.00014572,2]
[398066561,1765349448035,-42.22690174,0.00014572,2]
[398066562,1765349448047,-457.77309826,0.00014572,2]
[398066563,1765349448056,-42.22690174,0.00014572,2]
[398066564,1765349448071,-457.77309826,0.00014572,2]
[398066565,1765349448080,-500.0,0.00014572,2]
[398066566,1765349448090,-500.0,0.00014572,2]
[398066567,1765349448099,-500.0,0.00014572,2]
[398066568,1765349448108,-242.44423142,0.00014572,2]
[398066569,1765349448198,-257.55576858,0.00014572,2]
[398066570,1765349448207,-500.0,0.00014572,2]
[398066571,1765349448216,-417.35486542,0.00014572,2]
[398066572,1765349448855,-82.64513458,0.00014572,2]
[398066573,1765349448865,-602.56,0.00014572,2]
[398066574,1765349448876,-500.0,0.00014572,2]
[398066575,1765349448885,-509.09668249,0.00014572,2]
[398066576,1765349448894,-500.0,0.00014572,2]
[398066577,1765349448905,-500.0,0.00014572,2]
[398066578,1765349448914,-500.0,0.00014572,2]
[398066579,1765349448924,-500.0,0.00014572,2]
[398066580,1765349448933,-500.0,0.00014572,2]
[398066581,1765349448943,-153.47035403,0.00014572,2]
[398066582,1765349448952,-500.0,0.00014572,2]
[398066583,1765349448961,-500.0,0.00014572,2]
[398066584,1765349448970,-500.0,0.00014572,2]
[398066585,1765349448979,-500.0,0.00014572,2]
[398066586,1765349448988,-500.0,0.00014572,2]
[398066587,1765349448998,-500.0,0.00014572,2]
[398066588,1765349449007,-505.13777264,0.00014572,2]
[398066589,1765349449017,-500.0,0.00014572,2]
[398066590,1765349449026,-500.0,0.00014572,2]
[398066591,1765349449035,-500.0,0.00014572,2]
[398066592,1765349449043,-500.0,0.00014572,2]
[398066593,1765349449053,-500.0,0.00014572,2]
[398066594,1765349449062,-500.0,0.00014572,2]
[398066595,1765349449072,-500.0,0.00014572,2]
[398066596,1765349449081,-505.83447233,0.00014572,2]
[398066597,1765349449090,-500.0,0.00014572,2]
[398066598,1765349449100,-513.97956269,0.00014572,2]
[398066599,1765349449109,-500.0,0.00014572,2]
[398066600,1765349449118,-500.0,0.00014572,2]
[398066601,1765349449127,-511.86553848,0.00014572,2]
[398066602,1765349449136,-500.0,0.00014572,2]
[398066603,1765349449145,-510.8097908,0.00014572,2]
[398066604,1765349449154,-500.0,0.00014572,2]
[398066605,1765349449164,-506.44292833,0.00014572,2]
[398066606,1765349449173,-518.82005713,0.00014572,2]
[398066607,1765349449182,-520.69285531,0.00014572,2]
[398066608,1765349449191,-500.0,0.00014572,2]
[398066609,1765349449200,-500.0,0.00014572,2]
[398066610,1765349449210,-500.0,0.00014572,2]
[398066611,1765349449219,-500.0,0.00014572,2]
[398066612,1765349449228,-630.41,0.00014572,2]
[398066613,1765349449237,-500.0,0.00014572,2]
[398066614,1765349449247,-500.0,0.00014572,2]
[398066615,1765349449256,-500.0,0.00014572,2]
[398066616,1765349449266,-500.0,0.00014572,2]
[398066617,1765349449275,-500.0,0.00014572,2]
[398066618,1765349449285,-500.0,0.00014572,2]
[398066619,1765349449295,-506.0772378,0.00014572,2]
[398066620,1765349449304,-500.0,0.00014572,2]
[398066621,1765349449314,-500.0,0.00014572,2]
[398066622,1765349449323,-500.0,0.00014572,2]
[398066623,1765349449332,-500.0,0.00014572,2]
[398066624,1765349449342,-500.0,0.00014572,2]
[398066625,1765349449351,-500.0,0.00014572,2]
[398066626,1765349449360,-500.0,0.00014572,2]
[398066627,1765349449370,-500.0,0.00014572,2]
[398066628,1765349449379,-500.0,0.00014572,2]
[398066629,1765349449389,-621.82,0.00014572,2]
[398066630,1765349449399,-500.0,0.00014572,2]
[398066631,1765349449409,-500.0,0.00014572,2]
[398066632,1765349449418,-500.0,0.00014572,2]
[398066633,1765349449427,-500.0,0.00014572,2]
[398066634,1765349449436,-500.0,0.00014572,2]
[398066635,1765349449446,-500.0,0.00014572,2]
[398066636,1765349449455,-618.1,0.00014572,2]
[398066637,1765349449464,-500.0,0.00014572,2]
[398066638,1765349449474,-500.0,0.00014572,2]
[398066639,1765349449484,-273.9981001,0.00014572,2]
[398066640,1765349449494,-500.0,0.00014572,2]
[398066641,1765349449508,-500.0,0.00014572,2]
[398066642,1765349449517,-503.96649223,0.00014572,2]
[398066643,1765349449526,-500.0,0.00014572,2]
[398066644,1765349449536,-500.0,0.00014572,2]
[398066645,1765349449548,-500.0,0.00014572,2]
[398066646,1765349449557,-500.0,0.00014572,2]
[398066647,1765349449566,-500.0,0.00014572,2]
[398066648,1765349449575,-500.0,0.00014572,2]
[398066649,1765349449584,-500.0,0.00014572,2]
[398066650,1765349449594,-515.57597036,0.00014572,2]
[398066651,1765349449604,-500.0,0.00014572,2]
[398066652,1765349449613,-500.0,0.00014572,2]
[398066653,1765349449622,-500.0,0.00014572,2]
[398066654,1765349449632,-500.0,0.00014572,2]
[398066655,1765349449641,-500.0,0.00014572,2]
[398066656,1765349449650,-1124.47,0.00014572,2]
[398066657,1765349449659,-500.0,0.00014572,2]
[398066658,1765349449668,-500.0,0.00014572,2]
[398066659,1765349449678,-500.0,0.00014572,2]
[398066660,1765349449687,-500.0,0.00014572,2]
[398066661,1765349449696,-500.0,0.00014572,2]
[398066662,1765349449705,-500.0,0.00014572,2]
[398066663,1765349449714,-869.96,0.00014572,2]
[398066664,1765349449723,-863.33,0.00014572,2]
[398066665,1765349449733,-26.68108557,0.00014572,2]
[398066666,1765349449746,-473.31891443,0.00014572,2]
[398066667,1765349449756,-440.80497679,0.00014572,2]
[398066668,1765349449767,-59.19502321,0.00014572,2]
[398066669,1765349449777,-500.0,0.00014572,2]
[398066670,1765349449787,-500.0,0.00014572,2]
[398066671,1765349449796,-500.0,0.00014572,2]
[398066672,1765349449806,-500.0,0.00014572,2]
[398066673,1765349449815,-500.0,0.00014572,2]
[398066674,1765349449824,-500.0,0.00014572,2]
[398066675,1765349449834,-500.0,0.00014572,2]
[398066676,1765349449843,-500.0,0.00014572,2]
[398066677,1765349449854,-756.7,0.00014572,2]
[398066678,1765349449863,-642.15,0.00014572,2]
[398066679,1765349449873,-500.0,0.00014572,2]
[398066680,1765349449882,-805.11,0.00014572,2]
[398066681,1765349449892,-500.0,0.00014572,2]